[Event "*** SCC Grand Prix: Titled Tuesday Blitz"]
[Site "Chess.com"]
[Date "2020.09.29"]
[Round "8"]
[White "GHANDEEVAM2003"]
[Black "tdf98pantani"]
[Result "1/2-1/2"]
[WhiteElo "2984"]
[BlackElo "2639"]
[TimeControl "180+1"]
[EndTime "11:33:41 PDT"]
[Termination "Game drawn - insufficient material"]

1. c3 {[%clk 0:03:00.9]} 1... Nf6 {[%clk 0:02:59.1]} 2. Na3 {[%clk 0:03:00.8]}
2... e6 {[%clk 0:02:58.2]} 3. Nc2 {[%clk 0:03:00.4]} 3... b6 {[%clk 0:02:58.5]}
4. f3 {[%clk 0:03:00.2]} 4... Bb7 {[%clk 0:02:58.7]} 5. Nh3 {[%clk 0:03:00.7]}
5... Ke7 {[%clk 0:02:59.2]} 6. Nf2 {[%clk 0:03:00.6]} 6... Ke8 {[%clk
0:02:59.6]} 7. e4 {[%clk 0:03:00]} 7... Ke7 {[%clk 0:03:00]} 8. d4 {[%clk
0:03:00.3]} 8... Ke8 {[%clk 0:03:00.4]} 9. Bd3 {[%clk 0:03:00.3]} 9... Ng8
{[%clk 0:03:00.7]} 10. O-O {[%clk 0:03:00.5]} 10... d6 {[%clk 0:03:01.1]} 11.
Qe2 {[%clk 0:03:00.9]} 11... Nd7 {[%clk 0:03:01.4]} 12. Be3 {[%clk 0:02:59.5]}
12... g6 {[%clk 0:03:01.6]} 13. a4 {[%clk 0:02:59.8]} 13... a6 {[%clk
0:03:01.1]} 14. b4 {[%clk 0:02:48.1]} 14... Bg7 {[%clk 0:03:01.3]} 15. c4 {[%clk
0:02:48.5]} 15... Ne7 {[%clk 0:03:01.4]} 16. a5 {[%clk 0:02:49]} 16... h6 {[%clk
0:02:41.9]} 17. Rfb1 {[%clk 0:02:47.1]} 17... bxa5 {[%clk 0:02:26.4]} 18. bxa5
{[%clk 0:02:40.8]} 18... Qc8 {[%clk 0:02:22]} 19. Qd2 {[%clk 0:02:38]} 19... c5
{[%clk 0:02:20.4]} 20. d5 {[%clk 0:02:31.7]} 20... Bxa1 {[%clk 0:02:17.9]} 21.
Nxa1 {[%clk 0:02:32.6]} 21... g5 {[%clk 0:02:15.9]} 22. Qb2 {[%clk 0:02:32]}
22... Ne5 {[%clk 0:02:11.9]} 23. Qxb7 {[%clk 0:02:31.2]} 23... Qxb7 {[%clk
0:02:08.8]} 24. Rxb7 {[%clk 0:02:32.1]} 24... N7g6 {[%clk 0:02:01.7]} 25. Nc2
{[%clk 0:02:19.8]} 25... Kf8 {[%clk 0:02:01.7]} 26. Be2 {[%clk 0:02:16.5]} 26...
Kg7 {[%clk 0:02:00.7]} 27. Rb6 {[%clk 0:02:10.7]} 27... Rhb8 {[%clk 0:01:56.7]}
28. Rxd6 {[%clk 0:02:00.7]} 28... Rb2 {[%clk 0:01:56.5]} 29. Bd1 {[%clk
0:01:58.1]} 29... Nxc4 {[%clk 0:01:56]} 30. Bxc5 {[%clk 0:01:57.4]} 30... Nxd6
{[%clk 0:01:50]} 31. Bd4+ {[%clk 0:01:57.7]} 31... e5 {[%clk 0:01:47.6]} 32.
Bxb2 {[%clk 0:01:58.6]} 32... Rb8 {[%clk 0:01:45.5]} 33. Bc3 {[%clk 0:01:55.5]}
33... Rb3 {[%clk 0:01:42.3]} 34. Be1 {[%clk 0:01:52.9]} 34... Rb1 {[%clk
0:01:41.4]} 35. Kf1 {[%clk 0:01:40.3]} 35... Nc4 {[%clk 0:01:40.3]} 36. g3
{[%clk 0:01:38.9]} 36... Ne7 {[%clk 0:01:23.1]} 37. Ke2 {[%clk 0:01:38]} 37...
f5 {[%clk 0:01:22.4]} 38. Nd3 {[%clk 0:01:32.2]} 38... g4 {[%clk 0:01:17]} 39.
fxg4 {[%clk 0:01:27.8]} 39... fxe4 {[%clk 0:01:17]} 40. Nc5 {[%clk 0:01:27.7]}
40... Nxd5 {[%clk 0:01:13.3]} 41. Nxa6 {[%clk 0:01:25.9]} 41... Nb2 {[%clk
0:01:10.7]} 42. Nc5 {[%clk 0:01:03.3]} 42... Nxd1 {[%clk 0:01:10.2]} 43. a6
{[%clk 0:01:02.9]} 43... N1c3+ {[%clk 0:01:06]} 44. Bxc3 {[%clk 0:01:02.5]}
44... Nxc3+ {[%clk 0:01:06.6]} 45. Ke3 {[%clk 0:01:03.4]} 45... Rb5 {[%clk
0:01:01.2]} 46. Nxe4 {[%clk 0:00:56.4]} 46... Nxe4 {[%clk 0:00:57.2]} 47. Kxe4
{[%clk 0:00:57.3]} 47... Ra5 {[%clk 0:00:56.8]} 48. Ne3 {[%clk 0:00:51.8]} 48...
Rxa6 {[%clk 0:00:53.6]} 49. Kxe5 {[%clk 0:00:51.5]} 49... Kg6 {[%clk 0:00:50.7]}
50. Kf4 {[%clk 0:00:47.1]} 50... Ra4+ {[%clk 0:00:49.6]} 51. Kf3 {[%clk
0:00:47.2]} 51... Ra3 {[%clk 0:00:49.7]} 52. h4 {[%clk 0:00:46.7]} 52... Rb3
{[%clk 0:00:49.4]} 53. Kf4 {[%clk 0:00:45.7]} 53... Rb4+ {[%clk 0:00:49.6]} 54.
Kf3 {[%clk 0:00:46.1]} 54... Rb3 {[%clk 0:00:49.9]} 55. Kf2 {[%clk 0:00:46.6]}
55... Rb2+ {[%clk 0:00:50.1]} 56. Ke1 {[%clk 0:00:43.9]} 56... Kf6 {[%clk
0:00:47.7]} 57. Kf1 {[%clk 0:00:42.4]} 57... Ra2 {[%clk 0:00:47.9]} 58. Ng2
{[%clk 0:00:39.9]} 58... Ke5 {[%clk 0:00:47.5]} 59. Nf4 {[%clk 0:00:36.7]} 59...
Ke4 {[%clk 0:00:47.5]} 60. g5 {[%clk 0:00:35.6]} 60... hxg5 {[%clk 0:00:47.3]}
61. hxg5 {[%clk 0:00:36.5]} 61... Kf3 {[%clk 0:00:47.4]} 62. Ke1 {[%clk
0:00:36.9]} 62... Kxg3 {[%clk 0:00:46.2]} 63. Nd5 {[%clk 0:00:36]} 63... Ra5
{[%clk 0:00:44.4]} 64. Nf6 {[%clk 0:00:34.5]} 64... Kf3 {[%clk 0:00:38.6]} 65.
Kd2 {[%clk 0:00:27.8]} 65... Rxg5 {[%clk 0:00:37.8]} 66. Kc3 {[%clk 0:00:28]}
66... Rf5 {[%clk 0:00:36.7]} 67. Nd7 {[%clk 0:00:28.3]} 67... Ke4 {[%clk
0:00:36.9]} 68. Kc4 {[%clk 0:00:27.9]} 68... Rf1 {[%clk 0:00:36.1]} 69. Nc5+
{[%clk 0:00:27.9]} 69... Ke5 {[%clk 0:00:36.4]} 70. Nd3+ {[%clk 0:00:27.9]}
70... Kd6 {[%clk 0:00:36.6]} 71. Kd4 {[%clk 0:00:27.5]} 71... Re1 {[%clk
0:00:36.4]} 72. Nxe1 {[%clk 0:00:27.4]} 1/2-1/2

[Event "*** SCC Grand Prix: Titled Tuesday Blitz"]
[Site "Chess.com"]
[Date "2020.09.29"]
[Round "8"]
[White "ViditYT"]
[Black "davidkalashian"]
[Result "1/2-1/2"]
[WhiteElo "2724"]
[BlackElo "2597"]
[TimeControl "180+1"]
[EndTime "11:33:42 PDT"]
[Termination "Game drawn by repetition"]

1. d4 {[%clk 0:03:00.9]} 1... Nf6 {[%clk 0:02:45.9]} 2. c4 {[%clk 0:03:00.4]}
2... e6 {[%clk 0:02:06]} 3. Nf3 {[%clk 0:02:59.9]} 3... b6 {[%clk 0:02:05.7]} 4.
g3 {[%clk 0:02:59.7]} 4... Ba6 {[%clk 0:02:05.2]} 5. b3 {[%clk 0:02:59.4]} 5...
Bb4+ {[%clk 0:02:05]} 6. Bd2 {[%clk 0:02:58.8]} 6... Be7 {[%clk 0:02:05.5]} 7.
Nc3 {[%clk 0:02:58]} 7... d5 {[%clk 0:02:04.9]} 8. cxd5 {[%clk 0:02:55.9]} 8...
exd5 {[%clk 0:02:00.3]} 9. Bg2 {[%clk 0:02:56]} 9... O-O {[%clk 0:02:00.8]} 10.
O-O {[%clk 0:02:56.4]} 10... c6 {[%clk 0:01:59.6]} 11. Rc1 {[%clk 0:02:56.5]}
11... Re8 {[%clk 0:01:59.1]} 12. Rc2 {[%clk 0:02:51.6]} 12... Bd6 {[%clk
0:01:58.2]} 13. Re1 {[%clk 0:02:41]} 13... Ne4 {[%clk 0:01:57.5]} 14. Nxe4
{[%clk 0:02:13.8]} 14... dxe4 {[%clk 0:01:56.6]} 15. Ne5 {[%clk 0:02:11.7]}
15... Bxe5 {[%clk 0:01:46.1]} 16. dxe5 {[%clk 0:02:11.9]} 16... Rxe5 {[%clk
0:01:46.8]} 17. Bf4 {[%clk 0:02:12]} 17... Rd5 {[%clk 0:01:41.1]} 18. Qc1 {[%clk
0:02:10.1]} 18... f5 {[%clk 0:01:40.2]} 19. f3 {[%clk 0:02:10.2]} 19... exf3
{[%clk 0:01:27.8]} 20. Bxf3 {[%clk 0:02:11.1]} 20... Rd7 {[%clk 0:01:27.9]} 21.
Rc3 {[%clk 0:01:43.7]} 21... Bb7 {[%clk 0:01:25.2]} 22. e4 {[%clk 0:01:41.6]}
22... c5 {[%clk 0:01:08.6]} 23. exf5 {[%clk 0:01:33.2]} 23... Bxf3 {[%clk
0:01:08]} 24. Rxf3 {[%clk 0:01:34.1]} 24... Nc6 {[%clk 0:01:08.3]} 25. Bg5
{[%clk 0:00:41.9]} 25... Qf8 {[%clk 0:01:03.2]} 26. f6 {[%clk 0:00:42.1]} 26...
Nd4 {[%clk 0:00:56.8]} 27. Rf2 {[%clk 0:00:40.9]} 27... Re8 {[%clk 0:00:27.7]}
28. Qc4+ {[%clk 0:00:36.9]} 28... Rf7 {[%clk 0:00:20.5]} 29. Ref1 {[%clk
0:00:19.8]} 29... g6 {[%clk 0:00:17.5]} 30. h4 {[%clk 0:00:17.7]} 30... h6
{[%clk 0:00:16.8]} 31. Bf4 {[%clk 0:00:16.3]} 31... Kh7 {[%clk 0:00:15.8]} 32.
Bc1 {[%clk 0:00:13.8]} 32... Re6 {[%clk 0:00:14.2]} 33. Bb2 {[%clk 0:00:13]}
33... Rexf6 {[%clk 0:00:13.5]} 34. Bxd4 {[%clk 0:00:11.3]} 34... cxd4 {[%clk
0:00:11.6]} 35. Qxd4 {[%clk 0:00:10.6]} 35... Rxf2 {[%clk 0:00:11]} 36. Rxf2
{[%clk 0:00:11.5]} 36... Rxf2 {[%clk 0:00:10.6]} 37. Qxf2 {[%clk 0:00:12.4]}
37... Qe7 {[%clk 0:00:09.7]} 38. Kh2 {[%clk 0:00:10.5]} 38... h5 {[%clk
0:00:10]} 39. Qd2 {[%clk 0:00:10.2]} 39... Qf7 {[%clk 0:00:09.4]} 40. Kg2 {[%clk
0:00:10.3]} 40... Qb7+ {[%clk 0:00:08.6]} 41. Kf2 {[%clk 0:00:10.4]} 41... Qf7+
{[%clk 0:00:08.2]} 42. Ke2 {[%clk 0:00:08.7]} 42... Qe6+ {[%clk 0:00:06.9]} 43.
Qe3 {[%clk 0:00:08.7]} 43... Qd7 {[%clk 0:00:06.5]} 44. Qe5 {[%clk 0:00:07.3]}
44... Qf7 {[%clk 0:00:04.8]} 45. Ke3 {[%clk 0:00:07.4]} 45... Qd7 {[%clk
0:00:04.8]} 46. Ke2 {[%clk 0:00:05]} 46... Qf7 {[%clk 0:00:03.4]} 47. Ke3 {[%clk
0:00:05.2]} 47... Qd7 {[%clk 0:00:03.7]} 48. Ke2 {[%clk 0:00:05.5]} 1/2-1/2

[Event "*** SCC Grand Prix: Titled Tuesday Blitz"]
[Site "Chess.com"]
[Date "2020.09.29"]
[Round "8"]
[White "Mikhail_Golubev"]
[Black "sokidze"]
[Result "1-0"]
[WhiteElo "2469"]
[BlackElo "2608"]
[TimeControl "180+1"]
[EndTime "11:33:46 PDT"]
[Termination "Mikhail_Golubev won by checkmate"]

1. e4 {[%clk 0:03:00.9]} 1... c5 {[%clk 0:02:59.3]} 2. Nf3 {[%clk 0:03:00.9]}
2... Nc6 {[%clk 0:02:59.5]} 3. Nc3 {[%clk 0:03:00.7]} 3... g6 {[%clk 0:02:59.2]}
4. d4 {[%clk 0:03:00.8]} 4... cxd4 {[%clk 0:02:59.6]} 5. Nxd4 {[%clk 0:03:01.3]}
5... Bg7 {[%clk 0:03:00]} 6. Be3 {[%clk 0:03:01.5]} 6... Nf6 {[%clk 0:03:00.5]}
7. Nxc6 {[%clk 0:03:01.3]} 7... bxc6 {[%clk 0:03:00.4]} 8. e5 {[%clk 0:03:01.8]}
8... Ng8 {[%clk 0:03:00.9]} 9. Bd4 {[%clk 0:03:01.8]} 9... Qa5 {[%clk
0:03:00.4]} 10. f4 {[%clk 0:02:52.7]} 10... f6 {[%clk 0:03:00.4]} 11. Qd2 {[%clk
0:02:52.9]} 11... fxe5 {[%clk 0:02:32.1]} 12. fxe5 {[%clk 0:02:52.5]} 12... Rb8
{[%clk 0:01:51]} 13. e6 {[%clk 0:02:26.3]} 13... Nf6 {[%clk 0:01:35.8]} 14.
exd7+ {[%clk 0:02:17.5]} 14... Bxd7 {[%clk 0:01:34.7]} 15. Bc4 {[%clk
0:01:31.5]} 15... Qb4 {[%clk 0:01:07.8]} 16. Bb3 {[%clk 0:01:15.8]} 16... Ne4
{[%clk 0:00:51.5]} 17. Nxe4 {[%clk 0:01:14.4]} 17... Qxd2+ {[%clk 0:00:51.3]}
18. Kxd2 {[%clk 0:01:03.1]} 18... Bxd4 {[%clk 0:00:52.2]} 19. c3 {[%clk
0:01:03.4]} 19... Bb6 {[%clk 0:00:48.7]} 20. Rhf1 {[%clk 0:00:56]} 20... Bf5
{[%clk 0:00:47.5]} 21. Ng3 {[%clk 0:00:47.7]} 21... Rd8+ {[%clk 0:00:43.5]} 22.
Ke1 {[%clk 0:00:47.4]} 22... Rf8 {[%clk 0:00:31.2]} 23. Nxf5 {[%clk 0:00:45.8]}
23... gxf5 {[%clk 0:00:31.6]} 24. Be6 {[%clk 0:00:38.9]} 24... f4 {[%clk
0:00:27.2]} 25. Rd1 {[%clk 0:00:35.8]} 25... Rd6 {[%clk 0:00:26.9]} 26. Rxd6
{[%clk 0:00:34.7]} 26... exd6 {[%clk 0:00:27.8]} 27. Bg4 {[%clk 0:00:31.1]}
27... Ke7 {[%clk 0:00:26.6]} 28. Bf3 {[%clk 0:00:30.8]} 28... d5 {[%clk
0:00:26.8]} 29. Kd2 {[%clk 0:00:29.5]} 29... Kd6 {[%clk 0:00:26.5]} 30. Kd3
{[%clk 0:00:29.5]} 30... Re8 {[%clk 0:00:25.4]} 31. Rd1 {[%clk 0:00:23.6]} 31...
Be3 {[%clk 0:00:14.7]} 32. c4 {[%clk 0:00:19.5]} 32... d4 {[%clk 0:00:10.6]} 33.
b4 {[%clk 0:00:19.1]} 33... Rb8 {[%clk 0:00:09.1]} 34. a3 {[%clk 0:00:17.7]}
34... c5 {[%clk 0:00:08.8]} 35. Rb1 {[%clk 0:00:16.6]} 35... Rb6 {[%clk
0:00:04.9]} 36. b5 {[%clk 0:00:16.2]} 36... a5 {[%clk 0:00:03.4]} 37. bxa6
{[%clk 0:00:15]} 37... Rxa6 {[%clk 0:00:02.1]} 38. Rb3 {[%clk 0:00:15]} 38...
Kc7 {[%clk 0:00:02.1]} 39. Rb7+ {[%clk 0:00:13.4]} 39... Kd6 {[%clk 0:00:02.1]}
40. Rxh7 {[%clk 0:00:13.7]} 40... Rxa3+ {[%clk 0:00:02.1]} 41. Ke4 {[%clk
0:00:13.7]} 41... d3 {[%clk 0:00:02.8]} 42. Rh6+ {[%clk 0:00:12.8]} 42... Ke7
{[%clk 0:00:03.4]} 43. Rh7+ {[%clk 0:00:11.8]} 43... Kf6 {[%clk 0:00:02.4]} 44.
Rh6+ {[%clk 0:00:11.4]} 44... Kg7 {[%clk 0:00:02.5]} 45. Rd6 {[%clk 0:00:11]}
45... d2 {[%clk 0:00:03.4]} 46. h4 {[%clk 0:00:10.2]} 46... Ra1 {[%clk
0:00:03.3]} 47. h5 {[%clk 0:00:09.5]} 47... Bd4 {[%clk 0:00:03.8]} 48. Kf5
{[%clk 0:00:06.7]} 48... Rf1 {[%clk 0:00:03.1]} 49. h6+ {[%clk 0:00:05]} 49...
Kh8 {[%clk 0:00:02.6]} 50. Be4 {[%clk 0:00:05]} 50... d1=Q {[%clk 0:00:02.5]}
51. Rd8+ {[%clk 0:00:02.1]} 51... Kh7 {[%clk 0:00:02.6]} 52. Kg5# {[%clk
0:00:02.8]} 1-0

[Event "*** SCC Grand Prix: Titled Tuesday Blitz"]
[Site "Chess.com"]
[Date "2020.09.29"]
[Round "8"]
[White "Berardino"]
[Black "szachuspl"]
[Result "0-1"]
[WhiteElo "2709"]
[BlackElo "2557"]
[TimeControl "180+1"]
[EndTime "11:33:47 PDT"]
[Termination "szachuspl won on time"]

1. e4 {[%clk 0:03:00.9]} 1... c5 {[%clk 0:02:58.9]} 2. Nf3 {[%clk 0:02:59.9]}
2... a6 {[%clk 0:02:58.8]} 3. Nc3 {[%clk 0:02:58.4]} 3... Nc6 {[%clk 0:02:56.7]}
4. d4 {[%clk 0:02:57.7]} 4... cxd4 {[%clk 0:02:56.8]} 5. Nxd4 {[%clk 0:02:58.6]}
5... e5 {[%clk 0:02:57]} 6. Nf5 {[%clk 0:02:57.6]} 6... d6 {[%clk 0:02:53.3]} 7.
Bc4 {[%clk 0:02:47.7]} 7... g6 {[%clk 0:02:42.7]} 8. Ne3 {[%clk 0:02:46.5]} 8...
Nf6 {[%clk 0:02:39.7]} 9. Ned5 {[%clk 0:02:39.7]} 9... Nxd5 {[%clk 0:02:37.8]}
10. Nxd5 {[%clk 0:02:38.3]} 10... Be6 {[%clk 0:02:36.5]} 11. Be3 {[%clk
0:02:35.7]} 11... b5 {[%clk 0:02:34.8]} 12. Bb6 {[%clk 0:02:17.7]} 12... Qb8
{[%clk 0:02:15.1]} 13. Nc7+ {[%clk 0:01:24.8]} 13... Kd7 {[%clk 0:01:58.7]} 14.
Bxe6+ {[%clk 0:01:23.3]} 14... fxe6 {[%clk 0:01:58.6]} 15. Nxa8 {[%clk
0:01:23.3]} 15... Qxa8 {[%clk 0:01:59.1]} 16. O-O {[%clk 0:01:16.1]} 16... Be7
{[%clk 0:01:58.7]} 17. c3 {[%clk 0:01:10.4]} 17... h5 {[%clk 0:01:57.9]} 18. Qd3
{[%clk 0:01:02.9]} 18... h4 {[%clk 0:01:51.7]} 19. Rad1 {[%clk 0:00:59.4]} 19...
h3 {[%clk 0:01:50.8]} 20. g3 {[%clk 0:00:58.9]} 20... g5 {[%clk 0:01:50.1]} 21.
Qf3 {[%clk 0:00:57.2]} 21... Qe8 {[%clk 0:01:44.1]} 22. Qg4 {[%clk 0:00:56.9]}
22... Rh6 {[%clk 0:01:33.2]} 23. Rd2 {[%clk 0:00:54.7]} 23... Qb8 {[%clk
0:01:30]} 24. Be3 {[%clk 0:00:54]} 24... Na5 {[%clk 0:01:26.8]} 25. b3 {[%clk
0:00:49.5]} 25... Qc8 {[%clk 0:01:23.7]} 26. Rd3 {[%clk 0:00:49.2]} 26... Nb7
{[%clk 0:01:20.8]} 27. Rfd1 {[%clk 0:00:49]} 27... Nc5 {[%clk 0:01:20.5]} 28.
Bxc5 {[%clk 0:00:48.9]} 28... Qxc5 {[%clk 0:01:20.4]} 29. Qf3 {[%clk 0:00:35.7]}
29... Rf6 {[%clk 0:01:18]} 30. Qe2 {[%clk 0:00:23.8]} 30... g4 {[%clk
0:01:09.1]} 31. R1d2 {[%clk 0:00:21.5]} 31... Rg6 {[%clk 0:01:06.9]} 32. b4
{[%clk 0:00:18.1]} 32... Qc6 {[%clk 0:01:02.4]} 33. Rd1 {[%clk 0:00:15]} 33...
Ke8 {[%clk 0:01:01.4]} 34. Qe3 {[%clk 0:00:15.2]} 34... Kf7 {[%clk 0:00:55.3]}
35. f3 {[%clk 0:00:15]} 35... gxf3 {[%clk 0:00:49.9]} 36. Qxf3+ {[%clk
0:00:15.2]} 36... Kg7 {[%clk 0:00:50.3]} 37. Rf1 {[%clk 0:00:14.2]} 37... Qe8
{[%clk 0:00:49.6]} 38. Kh1 {[%clk 0:00:11.8]} 38... Kh6 {[%clk 0:00:35.7]} 39.
Qf2 {[%clk 0:00:10.6]} 39... Qc6 {[%clk 0:00:32.1]} 40. Qe2 {[%clk 0:00:10.1]}
40... Bg5 {[%clk 0:00:30.2]} 41. Rdf3 {[%clk 0:00:10.2]} 41... d5 {[%clk
0:00:29.8]} 42. exd5 {[%clk 0:00:06.1]} 42... Qxd5 {[%clk 0:00:30.3]} 43. Rd1
{[%clk 0:00:04.6]} 43... Qc6 {[%clk 0:00:30.3]} 44. Kg1 {[%clk 0:00:02.9]} 44...
e4 {[%clk 0:00:30.7]} 45. Rff1 {[%clk 0:00:02.7]} 45... e3 {[%clk 0:00:25.5]}
46. Rf3 {[%clk 0:00:02.7]} 46... Qxc3 {[%clk 0:00:24.7]} 47. Rd7 {[%clk
0:00:02.8]} 47... Qxb4 {[%clk 0:00:18.6]} 48. Rf1 {[%clk 0:00:02.7]} 48... Qe4
{[%clk 0:00:18]} 49. Rfd1 {[%clk 0:00:02.2]} 49... Rf6 {[%clk 0:00:16.7]} 50.
Rf1 {[%clk 0:00:01.1]} 50... Rxf1+ {[%clk 0:00:10.7]} 51. Qxf1 {[%clk 0:00:02]}
51... e2 {[%clk 0:00:05.4]} 52. Qf8+ {[%clk 0:00:02.1]} 52... Kh5 {[%clk
0:00:05.5]} 53. Qf7+ {[%clk 0:00:02.6]} 53... Kg4 {[%clk 0:00:05.8]} 0-1

[Event "*** SCC Grand Prix: Titled Tuesday Blitz"]
[Site "Chess.com"]
[Date "2020.09.29"]
[Round "8"]
[White "crazy_but_lazy"]
[Black "PlotnikovPavel"]
[Result "1-0"]
[WhiteElo "2545"]
[BlackElo "2373"]
[TimeControl "180+1"]
[EndTime "11:33:47 PDT"]
[Termination "crazy_but_lazy won by checkmate"]

1. e4 {[%clk 0:03:00.9]} 1... e5 {[%clk 0:02:59.5]} 2. Nf3 {[%clk 0:02:59.8]}
2... Nc6 {[%clk 0:02:59.9]} 3. Bc4 {[%clk 0:03:00.3]} 3... Nf6 {[%clk
0:02:59.2]} 4. Ng5 {[%clk 0:03:00.8]} 4... d5 {[%clk 0:02:58.6]} 5. exd5 {[%clk
0:03:01]} 5... Na5 {[%clk 0:02:59.2]} 6. Bb5+ {[%clk 0:03:01.6]} 6... c6 {[%clk
0:02:59.8]} 7. dxc6 {[%clk 0:03:02.5]} 7... bxc6 {[%clk 0:03:00.4]} 8. Be2
{[%clk 0:03:03.2]} 8... h6 {[%clk 0:03:00.7]} 9. Nh3 {[%clk 0:03:03.8]} 9... Bc5
{[%clk 0:02:58.5]} 10. d3 {[%clk 0:03:02.1]} 10... O-O {[%clk 0:02:55.1]} 11.
Nc3 {[%clk 0:03:02.5]} 11... Be6 {[%clk 0:02:50.4]} 12. Be3 {[%clk 0:02:46.9]}
12... Bd6 {[%clk 0:02:46.2]} 13. Qd2 {[%clk 0:02:44]} 13... Qd7 {[%clk
0:02:42.8]} 14. Ne4 {[%clk 0:02:37.6]} 14... Nxe4 {[%clk 0:02:35.1]} 15. dxe4
{[%clk 0:02:37.8]} 15... Nb7 {[%clk 0:02:29.3]} 16. O-O-O {[%clk 0:02:09.9]}
16... Qe7 {[%clk 0:02:26.2]} 17. Ba6 {[%clk 0:01:54.1]} 17... Bb4 {[%clk
0:02:15.7]} 18. c3 {[%clk 0:01:45.7]} 18... Rfd8 {[%clk 0:01:49.5]} 19. Qe2
{[%clk 0:01:45.6]} 19... Bc5 {[%clk 0:01:32.7]} 20. Bxb7 {[%clk 0:01:37.4]}
20... Bxe3+ {[%clk 0:01:31.6]} 21. Qxe3 {[%clk 0:01:38.3]} 21... Qxb7 {[%clk
0:01:31.9]} 22. Kb1 {[%clk 0:01:21.2]} 22... Qa6 {[%clk 0:01:29.9]} 23. b3
{[%clk 0:01:18.3]} 23... Rdb8 {[%clk 0:01:24.6]} 24. Kb2 {[%clk 0:00:59.5]}
24... Qa4 {[%clk 0:01:21.8]} 25. c4 {[%clk 0:00:50.5]} 25... Qxc4 {[%clk
0:01:15.3]} 26. Rc1 {[%clk 0:00:47.8]} 26... Qa6 {[%clk 0:01:14.3]} 27. Rc3
{[%clk 0:00:45.6]} 27... Rb6 {[%clk 0:01:13.9]} 28. Rhc1 {[%clk 0:00:45.4]}
28... Rab8 {[%clk 0:01:14.1]} 29. f4 {[%clk 0:00:42.7]} 29... Qb7 {[%clk
0:01:09.1]} 30. f5 {[%clk 0:00:36.6]} 30... Bd7 {[%clk 0:01:09.3]} 31. Nf2
{[%clk 0:00:30.8]} 31... f6 {[%clk 0:01:07.5]} 32. Nd3 {[%clk 0:00:29.9]} 32...
Be8 {[%clk 0:01:04.9]} 33. Nc5 {[%clk 0:00:29.5]} 33... Qe7 {[%clk 0:01:02.9]}
34. g4 {[%clk 0:00:27.8]} 34... Bf7 {[%clk 0:01:02.6]} 35. h4 {[%clk 0:00:28.1]}
35... Rd8 {[%clk 0:01:00.5]} 36. Rg1 {[%clk 0:00:23.1]} 36... Rd4 {[%clk
0:00:56.6]} 37. g5 {[%clk 0:00:21.7]} 37... h5 {[%clk 0:00:47.6]} 38. gxf6
{[%clk 0:00:17]} 38... Qxf6 {[%clk 0:00:48.5]} 39. Rg5 {[%clk 0:00:17.1]} 39...
Rb8 {[%clk 0:00:44.6]} 40. Rc2 {[%clk 0:00:15.2]} 40... Rbd8 {[%clk 0:00:21]}
41. Qg3 {[%clk 0:00:12.4]} 41... Rd2 {[%clk 0:00:20.1]} 42. Kc3 {[%clk
0:00:09.1]} 42... Rxc2+ {[%clk 0:00:15.5]} 43. Kxc2 {[%clk 0:00:10]} 43... Rd4
{[%clk 0:00:14.5]} 44. Qe3 {[%clk 0:00:06.2]} 44... Kf8 {[%clk 0:00:14.3]} 45.
Rg2 {[%clk 0:00:05.1]} 45... Qd6 {[%clk 0:00:14.5]} 46. Nd3 {[%clk 0:00:04]}
46... c5 {[%clk 0:00:13.9]} 47. Qg3 {[%clk 0:00:03.9]} 47... Qf6 {[%clk
0:00:13.1]} 48. Nxe5 {[%clk 0:00:03.1]} 48... Rxe4 {[%clk 0:00:13.6]} 49. Nd7+
{[%clk 0:00:03.6]} 49... Ke8 {[%clk 0:00:13.8]} 50. Nxf6+ {[%clk 0:00:04.5]}
50... gxf6 {[%clk 0:00:14.1]} 51. Qb8+ {[%clk 0:00:04.9]} 51... Ke7 {[%clk
0:00:14]} 52. Qb7+ {[%clk 0:00:05.6]} 52... Kf8 {[%clk 0:00:13.9]} 53. Qxe4
{[%clk 0:00:06.1]} 53... Be8 {[%clk 0:00:13.3]} 54. Qf4 {[%clk 0:00:06.6]} 54...
Bf7 {[%clk 0:00:14.2]} 55. Qh6+ {[%clk 0:00:06.9]} 55... Ke7 {[%clk 0:00:14.4]}
56. Rg7 {[%clk 0:00:07.8]} 56... Kd6 {[%clk 0:00:15.3]} 57. Rxf7 {[%clk
0:00:08.7]} 57... Ke5 {[%clk 0:00:15.8]} 58. Qxh5 {[%clk 0:00:09.5]} 58... Ke4
{[%clk 0:00:16.1]} 59. Qg6 {[%clk 0:00:10.4]} 59... Ke5 {[%clk 0:00:17]} 60.
Qxf6+ {[%clk 0:00:11.1]} 60... Kf4 {[%clk 0:00:17.3]} 61. Qe6 {[%clk 0:00:12]}
61... Kg4 {[%clk 0:00:18.2]} 62. f6+ {[%clk 0:00:12.6]} 62... Kf4 {[%clk
0:00:19.1]} 63. Rg7 {[%clk 0:00:13.5]} 63... Kf3 {[%clk 0:00:19.2]} 64. f7
{[%clk 0:00:13.9]} 64... Kf2 {[%clk 0:00:20.1]} 65. f8=Q# {[%clk 0:00:14.8]} 1-0